fUST/lending_fUST_20240815
["ID","MTS","AMOUNT","RATE_DAILY","PERIOD"]
[334978337,1723709446100,-177.6784031,0.00013698,2]
[334978338,1723709446109,-500.0,0.00013698,2]
[334978339,1723709446118,-554.88,0.00013698,2]
[334978340,1723709446127,-500.0,0.00013698,2]
[334978341,1723709446137,-500.0,0.00013698,2]
[334978342,1723709446146,-500.0,0.00013698,2]
[334978343,1723709446156,-500.0,0.00013698,2]
[334978344,1723709446165,-500.0,0.00013698,2]
[334978345,1723709446175,-500.0,0.00013698,2]
[334978346,1723709446185,-418.53740048,0.00013698,2]
[334978348,1723709446195,-506.89748179,0.00013698,2]
[334978350,1723709446208,-501.39409148,0.00013698,2]
[334978352,1723709446218,-500.0,0.00013698,2]
[334978353,1723709446227,-500.0,0.00013698,2]
[334978354,1723709446237,-500.0,0.00013698,2]
[334978355,1723709446247,-503.20340676,0.00013698,2]
[334978356,1723709446256,-500.0,0.00013698,2]
[334978357,1723709446266,-500.0,0.00013698,2]
[334978358,1723709446276,-500.0,0.00013698,2]
[334978359,1723709446288,-500.0,0.00013698,2]
[334978360,1723709446298,-500.47329596,0.00013698,2]
[334978361,1723709446307,-504.06897648,0.00013698,2]
[334978362,1723709446316,-500.0,0.00013698,2]
[334978363,1723709446326,-500.0,0.00013698,2]
[334978364,1723709446335,-526.98,0.00013698,2]
[334978365,1723709446344,-500.94457135,0.00013698,2]
[334978366,1723709446354,-500.0,0.00013698,2]
[334978367,1723709446363,-500.0,0.00013698,2]
[334978368,1723709446373,-503.76344581,0.00013698,2]
[334978369,1723709446382,-500.0,0.00013698,2]
[334978370,1723709446391,-500.0,0.00013698,2]
[334978371,1723709446401,-502.82057391,0.00013698,2]
[334978372,1723709446410,-500.0,0.00013698,2]
[334978373,1723709446419,-151.0,0.00013698,2]
[334978374,1723709446429,-151.0,0.00013698,2]
[334978375,1723709446439,-151.0,0.00013698,2]
[334978376,1723709446448,-151.0,0.00013698,2]
[334978377,1723709446457,-151.0,0.00013698,2]
[334978378,1723709446466,-151.0,0.00013698,2]
[334978379,1723709446476,-502.97006443,0.00013698,2]
[334978380,1723709446485,-296.608061,0.00013698,2]
[334978381,1723709446494,-500.0,0.00013698,2]
[334978382,1723709446504,-720.52,0.00013698,2]
[334978383,1723709446514,-500.0,0.00013698,2]
[334978384,1723709446523,-500.0,0.00013698,2]
[334978385,1723709446533,-158.027492,0.00013698,2]
[334978386,1723709446542,-500.0,0.00013698,2]
[334978387,1723709446551,-500.0,0.00013698,2]
[334978388,1723709446560,-158.027492,0.00013698,2]
[334978389,1723709446569,-158.027492,0.00013698,2]
[334978390,1723709446578,-158.027492,0.00013698,2]
[334978391,1723709446587,-158.027492,0.00013698,2]
[334978392,1723709446597,-999.33,0.00013698,2]
[334978393,1723709446606,-158.027492,0.00013698,2]
[334978394,1723709446615,-158.027492,0.00013698,2]
[334978395,1723709446624,-158.027492,0.00013698,2]
[334978396,1723709446633,-502.82621963,0.00013698,2]
[334978397,1723709446642,-158.027492,0.00013698,2]
[334978398,1723709446651,-719.5,0.00013698,2]
[334978399,1723709446661,-158.027492,0.00013698,2]
[334978400,1723709446670,-158.027492,0.00013698,2]
[334978401,1723709446679,-158.027492,0.00013698,2]
[334978402,1723709446690,-158.027492,0.00013698,2]
[334978403,1723709446699,-158.027492,0.00013698,2]
[334978404,1723709446709,-158.027492,0.00013698,2]
[334978405,1723709446719,-158.027491,0.00013698,2]
[334978406,1723709446728,-496.41965757,0.00013698,2]
[334978407,1723709446738,-500.0,0.00013698,2]
[334978408,1723709446747,-500.0,0.00013698,2]
[334978409,1723709446757,-677.43,0.00013698,2]
[334978410,1723709446766,-507.70579056,0.00013698,2]
[334978411,1723709446775,-500.0,0.00013698,2]
[334978412,1723709446784,-504.50983386,0.00013698,2]
[334978413,1723709446793,-500.0,0.00013698,2]
[334978414,1723709446802,-500.0,0.00013698,2]
[334978415,1723709446812,-500.0,0.00013698,2]
[334978416,1723709446821,-500.0,0.00013698,2]
[334978417,1723709446830,-500.0,0.00013698,2]
[334978418,1723709446842,-649.35320042,0.00013698,2]
[334978419,1723709446851,-737.88,0.00013698,2]
[334978420,1723709446861,-500.0,0.00013698,2]
[334978421,1723709446872,-754.48,0.00013698,2]
[334978422,1723709446882,-151.656771,0.00013698,2]
[334978423,1723709446892,-500.0,0.00013698,2]
[334978424,1723709446901,-500.0,0.00013698,2]
[334978425,1723709446911,-500.0,0.00013698,2]
[334978426,1723709446920,-684.65,0.00013698,2]
[334978427,1723709446930,-500.0,0.00013698,2]
[334978428,1723709446941,-500.0,0.00013698,2]
[334978429,1723709446951,-450.0,0.00013698,2]
[334978430,1723709446960,-737.7,0.00013698,2]
[334978431,1723709446969,-1047.66,0.00013698,2]
[334978432,1723709446980,-502.02432684,0.00013698,2]
[334978433,1723709446990,-500.0,0.00013698,2]
[334978434,1723709447000,-500.0,0.00013698,2]
[334978435,1723709447010,-169.7791706,0.00013698,2]
[334978436,1723709447019,-720.16,0.00013698,2]
[334978437,1723709447028,-772.64,0.00013698,2]
[334978438,1723709447038,-506.27434918,0.00013698,2]
[334978439,1723709447047,-500.87832019,0.00013698,2]
[334978440,1723709447057,-500.0,0.00013698,2]
[334978441,1723709447066,-502.71337189,0.00013698,2]
[334978442,1723709447075,-500.0,0.00013698,2]
[334978443,1723709447085,-500.0,0.00013698,2]
[334978444,1723709447094,-522.64,0.00013698,2]
[334978445,1723709447104,-516.87269888,0.00013698,2]
[334978446,1723709447113,-500.0,0.00013698,2]
[334978447,1723709447122,-501.42185491,0.00013698,2]
[334978448,1723709447132,-733.57,0.00013698,2]
[334978449,1723709447141,-483.53394423,0.00013698,2]
[334978450,1723709447150,-551.03,0.00013698,2]
[334978451,1723709447159,-500.0,0.00013698,2]
[334978452,1723709447169,-502.49036166,0.00013698,2]
[334978453,1723709447178,-500.0,0.00013698,2]
[334978454,1723709447190,-500.0,0.00013698,2]
[334978455,1723709447200,-727.2,0.00013698,2]
[334978456,1723709447210,-698.05,0.00013698,2]
[334978457,1723709447222,-500.0,0.00013698,2]
[334978458,1723709447233,-500.46077143,0.00013698,2]
[334978459,1723709447246,-730.88,0.00013698,2]
[334978460,1723709447257,-500.86575091,0.00013698,2]
[334978461,1723709447267,-500.0,0.00013698,2]
[334978462,1723709447276,-38.47028787,0.00013698,2]
[334978463,1723709477345,154.79103211,0.0001,2]
[334978464,1723709545946,154.79103211,0.0001,2]
[334978468,1723709571352,154.79103211,0.0001,2]
[334978469,1723709604494,1671.09905836,0.0001,2]
[334978470,1723709619484,1671.09905836,0.0001,2]
[334978471,1723709650952,240.47582342,0.0001,2]
[334978472,1723709664358,154.78330338,0.0001,2]
[334978473,1723709726998,1671.09905836,0.0001,2]
[334978474,1723709760671,460.47357495,0.00015,4]
[334978475,1723709761368,154.79103211,0.0001,2]
[334978476,1723709798183,460.47357495,0.00015,4]
[334978477,1723709811001,1671.09905836,0.0001,2]
[334978478,1723709848212,460.47357495,0.00015,4]
[334978479,1723709858878,160.33199586,0.0001,2]
[334978480,1723709908175,460.47357495,0.00015,4]
[334978481,1723709915562,1671.09905836,0.0001,2]
[334978482,1723710020520,316.94060866,0.0001,2]
[334978483,1723710036189,460.47357495,0.00015,4]
[334978488,1723710526910,802.25849297,0.0001,2]
[334978490,1723710562942,2275.84898831,9.999e-05,3]
[334978491,1723710572916,544.21920033,9.999e-05,2]
[334978492,1723710609244,155.18659521,9.999e-05,2]
[334978493,1723710611265,404.90354849,9.999e-05,2]
[334978494,1723710612564,309.58037505,9.999e-05,2]
[334978495,1723710617733,520.25072733,9.999e-05,2]
[334978496,1723710619758,155.10149656,9.999e-05,2]
[334978540,1723710632151,-160.65194178,0.00010081,2]
[334978542,1723710632162,-300.0,0.00010543,2]
[334978544,1723710632173,-811.0572358,0.00010544,2]
[334978546,1723710632183,-154.80649189,0.00010739,2]
[334978548,1723710632192,-154.79103211,0.00011046,2]
[334978550,1723710632202,-10075.80851872,0.00011319,2]
[334978636,1723710640227,-288.15834108,0.00010081,2]
[334978638,1723710640237,-131.02527652,0.00011319,2]
[334978643,1723710640276,-7421.29630006,0.00011319,2]
[334978645,1723710640286,-1123.9224255,0.00011605,2]
[334978647,1723710640295,-191.91195782,0.00011887,2]
[334978649,1723710640305,-309.7068249,0.00012121,2]
[334978651,1723710640316,-179.912347,0.00012986,2]
[334978653,1723710640326,-422.14513971,0.00012991,2]
[334978655,1723710640337,-306.6145265,0.00013178,2]
[334978657,1723710640347,-207.3665351,0.00013178,2]
[334978659,1723710640358,-153.0,0.00013178,2]
[334978661,1723710640369,-2430.76089825,0.00013305,2]
[334978663,1723710640378,-521.0,0.00013328,2]
[334978665,1723710640387,-541.51926205,0.00013528,2]
[334978667,1723710640399,-773.30270123,0.00013598,2]
[334978669,1723710640416,-714.97031828,0.00013598,2]
[334978671,1723710640425,-25000.0,0.00013598,2]
[334978673,1723710640434,-14874.58719456,0.00013598,2]
[334978675,1723710640444,-714.97031827,0.00013598,2]
[334978677,1723710640453,-714.97031827,0.00013599,2]
[334978679,1723710640462,-714.97031827,0.00013599,2]
[334978681,1723710640471,-714.97031827,0.00013599,2]
[334978683,1723710640481,-10000.0,0.000136,2]
[334978685,1723710640490,-336.6717376,0.000136,2]
[334978687,1723710640499,-582.8354928,0.00013668,2]
[334978689,1723710640508,-5324.62888985,0.00013676,2]
[334978691,1723710640518,-3844.8975856,0.00013688,2]
[334978693,1723710640527,-35238.49667684,0.00013688,2]
[334978971,1723710643262,-5140.73815095,0.00013688,2]
[334983602,1723710793800,150.5,0.0001783,120]
[334983603,1723710794349,225.57,0.0001782,120]
[334983613,1723711766142,-319.01,0.00010959,2]
[334983614,1723711766165,-362.57,0.00010959,2]
[334983615,1723711766187,-302.14,0.00010959,2]
[334983616,1723711766208,-251.79,0.00010959,2]
[334983617,1723711766229,-209.82,0.00010959,2]
[334983618,1723711766250,-174.85,0.00010959,2]
[334983619,1723711766271,-56.32359584,0.00010959,2]
[334983662,1723711832346,-817.96,0.00010959,2]
[334983665,1723711832356,-154.79103211,0.00011046,2]
[334983667,1723711832365,-3256.03778117,0.00011764,2]
[334983756,1723711840462,-12898.78238714,0.00011764,2]
[334983763,1723711840516,-2206.76153089,0.00011764,2]
[334983765,1723711840526,-191.91195782,0.00011887,2]
[334983767,1723711840536,-1000.0,0.00012,2]
[334983769,1723711840545,-300.0,0.00012158,2]
[334983771,1723711840555,-1632.47365274,0.00012779,2]
[334983773,1723711840564,-422.14513971,0.00012898,2]
[334983775,1723711840573,-207.41445,0.00012978,2]
[334983777,1723711840582,-207.41445,0.00012978,2]
[334983779,1723711840592,-179.912347,0.00012986,2]
[334983781,1723711840602,-154.053248,0.00013,2]
[334983783,1723711840611,-207.41445,0.00013,2]
[334983785,1723711840621,-306.8679035,0.00013,2]
[334983787,1723711840631,-710.5593929,0.00013,2]
[334983789,1723711840640,-3494.26265214,0.00013,2]
[334983791,1723711840650,-207.41445,0.00013078,2]
[334983793,1723711840661,-4930.1956417,0.00013167,2]
[334983796,1723711840674,-394.43324815,0.00013167,2]
[334983798,1723711840685,-150.0,0.00013312,2]
[334983800,1723711840694,-5407.30875817,0.00013496,2]
[334983802,1723711840703,-874.38861965,0.00013588,2]
[334983804,1723711840713,-874.38861961,0.00013591,2]
[334983806,1723711840723,-874.38861961,0.00013593,2]
[334983808,1723711840732,-773.30270123,0.00013598,2]
[334983810,1723711840742,-14663.44054587,0.00013598,2]
[334983812,1723711840751,-14874.58719456,0.00013598,2]
[334983814,1723711840760,-336.6717376,0.000136,2]
[334983816,1723711840770,-18184.111086,0.00013678,2]
[334983818,1723711840779,-9092.05554298,0.0001368,2]
[334983820,1723711840788,-1641.26104163,0.00013688,2]
[334983822,1723711840798,-21098.63963392,0.00013688,2]
[334983824,1723711840810,-670.14067694,0.00013688,2]
[334983826,1723711840821,-78243.83066214,0.00013688,2]
[334983828,1723711840831,-9092.05554298,0.00013689,2]
[334983830,1723711840840,-9092.05554298,0.00013689,2]
[334983832,1723711840851,-1500.0,0.00013696,2]
[334983834,1723711840861,-1500.0,0.00013696,2]
[334983836,1723711840872,-500.0,0.00013696,2]
[334983838,1723711840884,-309.7068249,0.00013697,2]
[334983841,1723711840894,-1973.23127316,0.00013697,2]
[334983843,1723711840906,-150.0,0.00013697,2]
[334983845,1723711840918,-521.0,0.00013697,2]
[334983847,1723711840929,-1413.0,0.00013697,2]
[334983850,1723711840940,-10079.27212374,0.00013698,2]
[334983852,1723711840951,-500.59257658,0.00013698,2]
[334983854,1723711840966,-500.0,0.00013698,2]
[334983856,1723711840975,-505.65074366,0.00013698,2]
[334983858,1723711840984,-502.79,0.00013698,2]
[334983860,1723711840993,-676.81,0.00013698,2]
[334983862,1723711841005,-500.0,0.00013698,2]
[334983864,1723711841014,-500.0,0.00013698,2]
[334983866,1723711841024,-485.79420532,0.00013698,2]
[334983868,1723711841034,-626.48,0.00013698,2]
[334983870,1723711841043,-500.0,0.00013698,2]
[334983872,1723711841054,-205.37050875,0.00013698,2]
[334983874,1723711841063,-500.0,0.00013698,2]
[334983876,1723711841072,-500.0,0.00013698,2]
[334983878,1723711841081,-500.0,0.00013698,2]
[334983880,1723711841090,-500.0,0.00013698,2]
[334983882,1723711841100,-500.0,0.00013698,2]
[334983884,1723711841109,-821.93,0.00013698,2]
[334983886,1723711841119,-500.0,0.00013698,2]
[334983888,1723711841128,-505.13049909,0.00013698,2]
[334983890,1723711841137,-501.45092338,0.00013698,2]
[334983892,1723711841147,-500.0,0.00013698,2]
[334983894,1723711841156,-500.0,0.00013698,2]
[334983896,1723711841165,-500.0,0.00013698,2]
[334983898,1723711841175,-500.0,0.00013698,2]
[334983900,1723711841186,-500.0,0.00013698,2]
[334983902,1723711841196,-505.45132813,0.00013698,2]
[334983904,1723711841206,-500.0,0.00013698,2]
[334983906,1723711841215,-500.0,0.00013698,2]
[334983908,1723711841224,-500.0,0.00013698,2]
[334983910,1723711841233,-500.0,0.00013698,2]
[334983912,1723711841242,-500.0,0.00013698,2]
[334983914,1723711841251,-690.15,0.00013698,2]
[334983916,1723711841261,-528.13880111,0.00013698,2]
[334983918,1723711841270,-500.0,0.00013698,2]
[334983920,1723711841279,-500.0,0.00013698,2]
[334983922,1723711841289,-563.39339795,0.00013698,2]
[334983924,1723711841299,-500.0,0.00013698,2]
[334983926,1723711841308,-500.0,0.00013698,2]
[334983928,1723711841318,-696.9,0.00013698,2]
[334983930,1723711841327,-503.18396261,0.00013698,2]
[334983932,1723711841337,-500.0,0.00013698,2]
[334983934,1723711841347,-500.0,0.00013698,2]
[334983936,1723711841356,-500.0,0.00013698,2]
[334983938,1723711841366,-500.0,0.00013698,2]
[334983940,1723711841375,-472.23054707,0.00013698,2]
[334983942,1723711841385,-500.0,0.00013698,2]
[334983944,1723711841394,-500.0,0.00013698,2]
[334983946,1723711841403,-505.95516428,0.00013698,2]
[334983948,1723711841412,-500.0,0.00013698,2]
[334983950,1723711841422,-759.79,0.00013698,2]
[334983952,1723711841432,-270.83935344,0.00013698,2]
[334983953,1723711841442,-500.0,0.00013698,2]
[334983955,1723711841451,-500.0,0.00013698,2]
[334983957,1723711841460,-555.73798203,0.00013698,2]
[334983958,1723711841469,-373.59197901,0.00013698,2]
[334983960,1723711841478,-500.0,0.00013698,2]
[334983962,1723711841488,-500.0,0.00013698,2]
[334983964,1723711841497,-719.3,0.00013698,2]
[334983965,1723711841506,-500.0,0.00013698,2]
[334983967,1723711841515,-500.0,0.00013698,2]
[334983969,1723711841525,-500.0,0.00013698,2]
[334983970,1723711841534,-500.0,0.00013698,2]
[334983972,1723711841543,-500.0,0.00013698,2]
[334983974,1723711841552,-538.07066586,0.00013698,2]
[334983976,1723711841561,-503.51802139,0.00013698,2]
[334983977,1723711841570,-562.5,0.00013698,2]
[334983979,1723711841579,-562.5,0.00013698,2]
[334983981,1723711841589,-562.5,0.00013698,2]
[334983983,1723711841598,-562.5,0.00013698,2]
[334983984,1723711841607,-562.5,0.00013698,2]
[334983986,1723711841616,-562.5,0.00013698,2]
[334983988,1723711841625,-562.5,0.00013698,2]
[334983990,1723711841634,-562.5,0.00013698,2]
[334983991,1723711841643,-562.5,0.00013698,2]
[334983993,1723711841653,-562.5,0.00013698,2]
[334983995,1723711841662,-562.5,0.00013698,2]
[334983997,1723711841672,-562.5,0.00013698,2]
[334983998,1723711841682,-500.0,0.00013698,2]
[334984000,1723711841691,-562.5,0.00013698,2]
[334984002,1723711841700,-562.5,0.00013698,2]
[334984004,1723711841710,-562.5,0.00013698,2]
[334984006,1723711841719,-500.0,0.00013698,2]
[334984008,1723711841731,-500.0,0.00013698,2]
[334984010,1723711841742,-500.0,0.00013698,2]
[334984011,1723711841751,-500.0,0.00013698,2]
[334984013,1723711841760,-501.58410123,0.00013698,2]
[334984015,1723711841770,-508.66403734,0.00013698,2]
[334984017,1723711841779,-500.0,0.00013698,2]
[334984018,1723711841789,-342.27455418,0.00013698,2]
[334984020,1723711841798,-500.0,0.00013698,2]
[334984022,1723711841809,-786.87,0.00013698,2]
[334984024,1723711841818,-500.0,0.00013698,2]
[334984025,1723711841828,-500.0,0.00013698,2]
[334984027,1723711841838,-509.5476719,0.00013698,2]
[334984029,1723711841847,-500.0,0.00013698,2]
[334984031,1723711841857,-500.0,0.00013698,2]
[334984033,1723711841867,-500.0,0.00013698,2]
[334984046,1723711842011,-584.3404547,0.00013698,2]
[334984048,1723711842022,-500.0,0.00013698,2]
[334984050,1723711842032,-500.0,0.00013698,2]
[334984052,1723711842045,-500.0,0.00013698,2]
[334984054,1723711842055,-500.0,0.00013698,2]
[334984056,1723711842064,-500.0,0.00013698,2]
[334984057,1723711842074,-185.0,0.00013698,2]
[334984059,1723711842084,-500.0,0.00013698,2]
[334984061,1723711842094,-500.0,0.00013698,2]
[334984063,1723711842104,-500.0,0.00013698,2]
[334984065,1723711842114,-863.26,0.00013698,2]
[334984067,1723711842124,-500.0,0.00013698,2]
[334984068,1723711842134,-500.0,0.00013698,2]
[334984070,1723711842143,-506.26458535,0.00013698,2]
[334984072,1723711842153,-500.0,0.00013698,2]
[334984074,1723711842162,-500.0,0.00013698,2]
[334984076,1723711842172,-500.0,0.00013698,2]
[334984078,1723711842182,-508.34672954,0.00013698,2]
[334984080,1723711842194,-506.95200765,0.00013698,2]
[334984082,1723711842204,-783.26,0.00013698,2]
[334984083,1723711842214,-512.88543441,0.00013698,2]
[334984085,1723711842224,-560.01,0.00013698,2]
[334984087,1723711842234,-500.0,0.00013698,2]
[334984089,1723711842244,-500.0,0.00013698,2]
[334984091,1723711842253,-500.0,0.00013698,2]
[334984093,1723711842263,-500.0,0.00013698,2]
[334984095,1723711842272,-500.0,0.00013698,2]
[334984096,1723711842282,-500.0,0.00013698,2]
[334984098,1723711842292,-503.61535578,0.00013698,2]
[334984100,1723711842301,-506.65835242,0.00013698,2]
[334984102,1723711842310,-500.0,0.00013698,2]
[334984104,1723711842320,-500.0,0.00013698,2]
[334984106,1723711842330,-500.0,0.00013698,2]
[334984107,1723711842339,-500.0,0.00013698,2]
[334984109,1723711842350,-448.39632702,0.00013698,2]
[334984111,1723711842361,-630.1,0.00013698,2]
[334984113,1723711842370,-531.07,0.00013698,2]
[334984115,1723711842380,-827.95,0.00013698,2]
[334984117,1723711842389,-500.0,0.00013698,2]
[334984119,1723711842399,-500.0,0.00013698,2]
[334984121,1723711842409,-500.0,0.00013698,2]
[334984123,1723711842419,-500.0,0.00013698,2]
[334984124,1723711842430,-529.642284,0.00013698,2]
[334984126,1723711842440,-529.642284,0.00013698,2]
[334984128,1723711842449,-529.642284,0.00013698,2]
[334984130,1723711842459,-529.642284,0.00013698,2]
[334984132,1723711842468,-529.642284,0.00013698,2]
[334984134,1723711842477,-529.642284,0.00013698,2]
[334984135,1723711842486,-484.56118132,0.00013698,2]
[334984137,1723711842496,-529.642284,0.00013698,2]
[334984139,1723711842506,-529.642284,0.00013698,2]
[334984141,1723711842515,-529.642284,0.00013698,2]
[334984143,1723711842525,-502.24325675,0.00013698,2]
[334984145,1723711842537,-529.642284,0.00013698,2]
[334984147,1723711842547,-529.642279,0.00013698,2]
[334984149,1723711842558,-500.0,0.00013698,2]
[334984151,1723711842569,-500.0,0.00013698,2]
[334984153,1723711842579,-222.63837823,0.00013698,2]
[334984154,1723711842589,-500.0,0.00013698,2]
[334984156,1723711842598,-500.0,0.00013698,2]
[334984158,1723711842609,-500.0,0.00013698,2]
[334984160,1723711842618,-516.30503848,0.00013698,2]
[334984162,1723711842629,-502.43448606,0.00013698,2]
[334984164,1723711842640,-659.55,0.00013698,2]
[334984166,1723711842652,-741.97,0.00013698,2]
[334984167,1723711842662,-500.0,0.00013698,2]
[334984169,1723711842672,-500.0,0.00013698,2]
[334984171,1723711842682,-500.0,0.00013698,2]
[334984173,1723711842693,-473.59311813,0.00013698,2]
[334984175,1723711842703,-151.0,0.00013698,2]
[334984177,1723711842712,-500.0,0.00013698,2]
[334984178,1723711842722,-500.74936775,0.00013698,2]
[334984180,1723711842732,-500.0,0.00013698,2]
[334984182,1723711842742,-622.69467479,0.00013698,2]
[334984184,1723711842753,-500.0,0.00013698,2]
[334984186,1723711842762,-501.89144435,0.00013698,2]
[334984187,1723711842772,-500.0,0.00013698,2]
[334984189,1723711842782,-500.0,0.00013698,2]
[334984191,1723711842793,-500.0,0.00013698,2]
[334984193,1723711842803,-731.9,0.00013698,2]
[334984195,1723711842814,-531.85742716,0.00013698,2]
[334984197,1723711842823,-738.33,0.00013698,2]
[334984199,1723711842834,-500.0,0.00013698,2]
[334984201,1723711842844,-500.0,0.00013698,2]
[334984202,1723711842853,-500.0,0.00013698,2]
[334984204,1723711842864,-500.0,0.00013698,2]
[334984206,1723711842874,-500.0,0.00013698,2]
[334984208,1723711842884,-533.69,0.00013698,2]
[334984210,1723711842895,-500.0,0.00013698,2]
[334984213,1723711842905,-151.0,0.00013698,2]
[334984215,1723711842915,-151.0,0.00013698,2]
[334984218,1723711842925,-151.0,0.00013698,2]
[334984220,1723711842935,-999.44,0.00013698,2]
[334984222,1723711842945,-151.0,0.00013698,2]
[334984224,1723711842955,-151.0,0.00013698,2]
[334984226,1723711842969,-151.0,0.00013698,2]
[334984229,1723711842978,-151.0,0.00013698,2]
[334984230,1723711842988,-575.59,0.00013698,2]
[334984232,1723711842999,-151.0,0.00013698,2]
[334984234,1723711843008,-151.0,0.00013698,2]
[334984236,1723711843018,-151.0,0.00013698,2]
[334984238,1723711843029,-151.0,0.00013698,2]
[334984239,1723711843040,-500.0,0.00013698,2]
[334984241,1723711843050,-151.0,0.00013698,2]
[334984243,1723711843061,-500.0,0.00013698,2]
[334984245,1723711843071,-500.0,0.00013698,2]
[334984246,1723711843080,-892.7,0.00013698,2]
[334984248,1723711843089,-500.0,0.00013698,2]
[334984250,1723711843101,-500.0,0.00013698,2]
[334984252,1723711843111,-503.88412054,0.00013698,2]
[334984254,1723711843121,-680.2,0.00013698,2]
[334984256,1723711843134,-500.0,0.00013698,2]
[334984258,1723711843146,-502.37483598,0.00013698,2]
[334984260,1723711843156,-584.06,0.00013698,2]
[334984262,1723711843166,-502.57236202,0.00013698,2]
[334984264,1723711843175,-831.88,0.00013698,2]
[334984266,1723711843187,-548.27933941,0.00013698,2]
[334984267,1723711843204,-500.0,0.00013698,2]
[334984269,1723711843213,-500.0,0.00013698,2]
[334984271,1723711843223,-500.0,0.00013698,2]
[334984273,1723711843232,-581.26349839,0.00013698,2]
[334984275,1723711843241,-509.97939403,0.00013698,2]
[334984277,1723711843251,-645.48,0.00013698,2]
[334984278,1723711843262,-500.0,0.00013698,2]
[334984280,1723711843271,-500.0,0.00013698,2]
[334984282,1723711843281,-500.0,0.00013698,2]
[334984284,1723711843291,-500.0,0.00013698,2]
[334984286,1723711843301,-500.0,0.00013698,2]
[334984288,1723711843310,-650.44,0.00013698,2]
[334984290,1723711843320,-500.0,0.00013698,2]
[334984291,1723711843330,-503.45819239,0.00013698,2]
[334984293,1723711843339,-419.08746111,0.00013698,2]
[334984295,1723711843349,-556.08411123,0.00013698,2]
[334984297,1723711843359,-500.0,0.00013698,2]
[334984299,1723711843368,-602.07,0.00013698,2]
[334984301,1723711843378,-675.75,0.00013698,2]
[334984303,1723711843388,-512.27209168,0.00013698,2]
[334984304,1723711843400,-500.0,0.00013698,2]
[334984306,1723711843410,-500.0,0.00013698,2]
[334984307,1723711843420,-500.0,0.00013698,2]
[334984308,1723711843432,-595.78,0.00013698,2]
[334984309,1723711843441,-513.31100977,0.00013698,2]
[334984310,1723711843451,-500.0,0.00013698,2]
[334984311,1723711843461,-500.0,0.00013698,2]
[334984313,1723711843470,-520.72,0.00013698,2]
[334984314,1723711843479,-756.98,0.00013698,2]
[334984315,1723711843489,-502.07068417,0.00013698,2]
[334984316,1723711843499,-500.0,0.00013698,2]
[334984317,1723711843508,-500.0,0.00013698,2]
[334984318,1723711843518,-500.0,0.00013698,2]
[334984319,1723711843528,-500.0,0.00013698,2]
[334984320,1723711843538,-506.27203636,0.00013698,2]
[334984321,1723711843549,-504.23171789,0.00013698,2]
[334984322,1723711843559,-500.0,0.00013698,2]
[334984324,1723711843568,-500.0,0.00013698,2]
[334984325,1723711843578,-510.34,0.00013698,2]
[334984326,1723711843589,-500.0,0.00013698,2]
[334984327,1723711843599,-715.02,0.00013698,2]
[334984328,1723711843608,-646.54647418,0.00013698,2]
[334984329,1723711843619,-500.0,0.00013698,2]
[334984330,1723711843629,-552.59,0.00013698,2]
[334984331,1723711843638,-500.0,0.00013698,2]
[334984332,1723711843649,-659.33,0.00013698,2]